[Event "*** Titled Tuesday Blitz"]
[Site "Chess.com"]
[Date "2021.04.20"]
[Round "5"]
[White "Nils_03"]
[Black "BigAl"]
[Result "0-1"]
[WhiteElo "2404"]
[BlackElo "2587"]
[TimeControl "180+1"]
[EndTime "10:56:20 PDT"]
[Termination "BigAl won by resignation"]

1. d4 {[%clk 0:03:00.9]} 1... Nf6 {[%clk 0:02:59.6]} 2. c4 {[%clk 0:03:01.1]}
2... g6 {[%clk 0:03:00.2]} 3. Nf3 {[%clk 0:03:00.9]} 3... Bg7 {[%clk 0:03:01.1]}
4. g3 {[%clk 0:02:59.9]} 4... O-O {[%clk 0:03:02]} 5. Bg2 {[%clk 0:03:00.3]}
5... d6 {[%clk 0:03:02.9]} 6. O-O {[%clk 0:03:00.7]} 6... Nbd7 {[%clk
0:03:03.8]} 7. Nc3 {[%clk 0:03:00.3]} 7... e5 {[%clk 0:03:04.4]} 8. e4 {[%clk
0:02:59]} 8... c6 {[%clk 0:03:04.8]} 9. h3 {[%clk 0:02:57]} 9... Qa5 {[%clk
0:03:05.3]} 10. Re1 {[%clk 0:02:54.7]} 10... exd4 {[%clk 0:03:00.9]} 11. Nxd4
{[%clk 0:02:54.3]} 11... Ne5 {[%clk 0:03:00.8]} 12. Bf1 {[%clk 0:02:44]} 12...
Qb6 {[%clk 0:03:00.4]} 13. Nb3 {[%clk 0:02:24.2]} 13... Be6 {[%clk 0:02:36.1]}
14. Be3 {[%clk 0:02:23.8]} 14... Qc7 {[%clk 0:02:35.5]} 15. Nd2 {[%clk
0:02:23.4]} 15... c5 {[%clk 0:02:11.9]} 16. Rc1 {[%clk 0:02:11.5]} 16... a6
{[%clk 0:02:06.5]} 17. f4 {[%clk 0:02:07.3]} 17... Nc6 {[%clk 0:02:05.8]} 18.
Nd5 {[%clk 0:02:06.9]} 18... Qd8 {[%clk 0:02:00.7]} 19. Bg2 {[%clk 0:01:57.5]}
19... Bxd5 {[%clk 0:01:52.5]} 20. cxd5 {[%clk 0:01:56.8]} 20... Nd4 {[%clk
0:01:41.7]} 21. Nf3 {[%clk 0:01:41.1]} 21... Nxf3+ {[%clk 0:01:27.2]} 22. Qxf3
{[%clk 0:01:38.1]} 22... Re8 {[%clk 0:01:25.4]} 23. Bf2 {[%clk 0:01:37.6]} 23...
Nd7 {[%clk 0:01:23.8]} 24. b3 {[%clk 0:01:36.5]} 24... b5 {[%clk 0:01:23.6]} 25.
h4 {[%clk 0:01:30.7]} 25... Rc8 {[%clk 0:01:22.3]} 26. Bh3 {[%clk 0:01:29.2]}
26... Rc7 {[%clk 0:01:19.5]} 27. h5 {[%clk 0:01:28.8]} 27... c4 {[%clk
0:01:16.8]} 28. Bxd7 {[%clk 0:01:16.7]} 28... Qxd7 {[%clk 0:01:15.6]} 29. Kg2
{[%clk 0:01:16.1]} 29... cxb3 {[%clk 0:01:01]} 30. axb3 {[%clk 0:01:13.1]} 30...
Rec8 {[%clk 0:01:00.2]} 31. Rxc7 {[%clk 0:01:07.4]} 31... Rxc7 {[%clk
0:01:00.4]} 32. e5 {[%clk 0:01:03.4]} 32... Rc3 {[%clk 0:00:57.7]} 33. Qxc3
{[%clk 0:01:01.3]} 33... dxe5 {[%clk 0:00:52.8]} 34. Qc6 {[%clk 0:00:56.7]}
34... Qf5 {[%clk 0:00:45.4]} 35. Qe8+ {[%clk 0:00:53.1]} 35... Bf8 {[%clk
0:00:45.2]} 36. Qxe5 {[%clk 0:00:47.6]} 36... Qc2 {[%clk 0:00:41.9]} 37. d6
{[%clk 0:00:43.8]} 37... Qc6+ {[%clk 0:00:42]} 38. Kh2 {[%clk 0:00:39.7]} 38...
Qf3 {[%clk 0:00:42.2]} 39. Kg1 {[%clk 0:00:36]} 39... Qg4 {[%clk 0:00:38.3]} 40.
hxg6 {[%clk 0:00:33.1]} 40... hxg6 {[%clk 0:00:38.8]} 41. Qe3 {[%clk 0:00:28.1]}
41... Bxd6 {[%clk 0:00:37.8]} 42. Qe8+ {[%clk 0:00:27.6]} 42... Bf8 {[%clk
0:00:37.1]} 43. Kg2 {[%clk 0:00:24.7]} 43... Qf5 {[%clk 0:00:32.9]} 44. Re5
{[%clk 0:00:23.2]} 44... Qc2 {[%clk 0:00:31.2]} 45. Qa8 {[%clk 0:00:20.9]} 45...
Kg7 {[%clk 0:00:26.3]} 46. Re8 {[%clk 0:00:20.1]} 46... Bc5 {[%clk 0:00:23.3]}
47. Qf3 {[%clk 0:00:17.8]} 47... Bxf2 {[%clk 0:00:21.7]} 48. Qxf2 {[%clk
0:00:18.7]} 48... Qc6+ {[%clk 0:00:21.9]} 49. Qf3 {[%clk 0:00:17.1]} 49... Qxe8
{[%clk 0:00:22.4]} 50. Qc3+ {[%clk 0:00:17.9]} 50... Kg8 {[%clk 0:00:21.7]} 51.
b4 {[%clk 0:00:17.5]} 51... Qe2+ {[%clk 0:00:21.6]} 52. Kh3 {[%clk 0:00:17.5]}
52... Qc4 {[%clk 0:00:21.4]} 53. Qd2 {[%clk 0:00:16.6]} 53... Kg7 {[%clk
0:00:20.9]} 54. Qb2+ {[%clk 0:00:16.1]} 54... Kh7 {[%clk 0:00:21.3]} 55. Qf6
{[%clk 0:00:15]} 55... Qe6+ {[%clk 0:00:21.2]} 56. Qxe6 {[%clk 0:00:14.3]} 56...
fxe6 {[%clk 0:00:22.1]} 57. Kg4 {[%clk 0:00:14.7]} 57... Kg7 {[%clk 0:00:23]}
58. Kg5 {[%clk 0:00:14.3]} 58... Kf7 {[%clk 0:00:23.6]} 59. g4 {[%clk
0:00:14.5]} 59... Kg7 {[%clk 0:00:24.1]} 60. f5 {[%clk 0:00:14]} 60... exf5
{[%clk 0:00:24.4]} 61. gxf5 {[%clk 0:00:14.9]} 61... gxf5 {[%clk 0:00:25.3]} 62.
Kxf5 {[%clk 0:00:15.4]} 62... Kf7 {[%clk 0:00:26.2]} 63. Ke5 {[%clk 0:00:15.3]}
63... Ke7 {[%clk 0:00:26.8]} 64. Kd5 {[%clk 0:00:15.5]} 64... Kd7 {[%clk
0:00:27.6]} 65. Kc5 {[%clk 0:00:15.6]} 65... Kc7 {[%clk 0:00:28.3]} 66. Kd5
{[%clk 0:00:15.9]} 66... Kb6 {[%clk 0:00:28.8]} 67. Kd4 {[%clk 0:00:15.1]} 67...
Kc6 {[%clk 0:00:29.3]} 68. Ke5 {[%clk 0:00:12.5]} 68... Kb6 {[%clk 0:00:28.2]}
69. Kd4 {[%clk 0:00:11.7]} 69... a5 {[%clk 0:00:29.1]} 70. Kc3 {[%clk
0:00:10.7]} 70... a4 {[%clk 0:00:28.9]} 71. Kd4 {[%clk 0:00:10.9]} 71... Kc6
{[%clk 0:00:28.4]} 72. Ke4 {[%clk 0:00:10.1]} 72... Kd6 {[%clk 0:00:28.3]} 73.
Kd4 {[%clk 0:00:09.9]} 73... Ke6 {[%clk 0:00:28.2]} 74. Kc3 {[%clk 0:00:04.9]}
74... Kd5 {[%clk 0:00:27.3]} 75. Kd3 {[%clk 0:00:04.7]} 75... Ke5 {[%clk
0:00:24.3]} 76. Kc3 {[%clk 0:00:04.5]} 76... Ke4 {[%clk 0:00:24.1]} 77. Kc2
{[%clk 0:00:04]} 77... Kd4 {[%clk 0:00:24]} 78. Kb2 {[%clk 0:00:02.9]} 78... Kc4
{[%clk 0:00:24.6]} 79. Ka3 {[%clk 0:00:03.8]} 79... Kc3 {[%clk 0:00:24.6]} 80.
Ka2 {[%clk 0:00:04.7]} 80... Kxb4 {[%clk 0:00:24.8]} 0-1

[Event "*** Titled Tuesday Blitz"]
[Site "Chess.com"]
[Date "2021.04.20"]
[Round "5"]
[White "klimkoj"]
[Black "rasmussvane"]
[Result "0-1"]
[WhiteElo "2619"]
[BlackElo "2871"]
[TimeControl "180+1"]
[EndTime "10:56:26 PDT"]
[Termination "rasmussvane won by resignation"]

1. e4 {[%clk 0:03:00.9]} 1... c6 {[%clk 0:02:59.9]} 2. d4 {[%clk 0:02:59.3]}
2... d5 {[%clk 0:03:00.8]} 3. Nc3 {[%clk 0:02:59.7]} 3... dxe4 {[%clk
0:03:01.4]} 4. Nxe4 {[%clk 0:03:00.6]} 4... Nf6 {[%clk 0:03:02]} 5. Nxf6+ {[%clk
0:02:58.3]} 5... exf6 {[%clk 0:03:02.9]} 6. Nf3 {[%clk 0:02:57.3]} 6... Bd6
{[%clk 0:03:03.5]} 7. Bd3 {[%clk 0:02:55.1]} 7... O-O {[%clk 0:03:04.4]} 8. O-O
{[%clk 0:02:54.8]} 8... Re8 {[%clk 0:03:05.3]} 9. c3 {[%clk 0:02:54.4]} 9... Nd7
{[%clk 0:03:05.9]} 10. Qc2 {[%clk 0:02:53]} 10... Nf8 {[%clk 0:03:06.5]} 11. Nd2
{[%clk 0:02:46.6]} 11... Ng6 {[%clk 0:03:05.2]} 12. Ne4 {[%clk 0:02:45.7]} 12...
Bc7 {[%clk 0:03:05.6]} 13. Ng3 {[%clk 0:02:42.7]} 13... Be6 {[%clk 0:03:01.5]}
14. b3 {[%clk 0:02:33.8]} 14... Qd7 {[%clk 0:03:01.5]} 15. Bd2 {[%clk
0:02:26.4]} 15... Rad8 {[%clk 0:02:59.2]} 16. a4 {[%clk 0:02:16.6]} 16... Kh8
{[%clk 0:02:59.5]} 17. Rae1 {[%clk 0:02:14.9]} 17... Nf4 {[%clk 0:02:45.3]} 18.
Bxf4 {[%clk 0:01:57.6]} 18... Bxf4 {[%clk 0:02:46.2]} 19. Nh5 {[%clk 0:01:23.1]}
19... Bc7 {[%clk 0:02:29.3]} 20. Bxh7 {[%clk 0:01:04.1]} 20... f5 {[%clk
0:02:28.2]} 21. Rxe6 {[%clk 0:00:56.4]} 21... Qxe6 {[%clk 0:02:29.1]} 22. Bxf5
{[%clk 0:00:55.1]} 22... Qe2 {[%clk 0:02:14.8]} 23. Ng3 {[%clk 0:00:42.1]} 23...
Qxc2 {[%clk 0:02:07.3]} 24. Bxc2 {[%clk 0:00:43]} 24... g6 {[%clk 0:02:06.6]}
25. Bd3 {[%clk 0:00:38.5]} 25... Kg7 {[%clk 0:02:06.3]} 26. Bc4 {[%clk
0:00:16.9]} 26... a6 {[%clk 0:01:58]} 27. Ne2 {[%clk 0:00:13.9]} 27... Re7
{[%clk 0:01:54.2]} 28. f3 {[%clk 0:00:11.8]} 28... Rde8 {[%clk 0:01:47.7]} 29.
Kf2 {[%clk 0:00:12.1]} 29... f5 {[%clk 0:01:24.5]} 30. h4 {[%clk 0:00:11]} 30...
Re3 {[%clk 0:01:04.7]} 31. Rd1 {[%clk 0:00:10.7]} 31... f4 {[%clk 0:01:04.7]}
32. Bd3 {[%clk 0:00:08.5]} 32... Kf6 {[%clk 0:01:00.3]} 33. Be4 {[%clk
0:00:07.8]} 33... R8xe4 {[%clk 0:00:20.3]} 34. fxe4 {[%clk 0:00:08.7]} 34...
Rxe4 {[%clk 0:00:21.2]} 35. Rd3 {[%clk 0:00:06.7]} 35... Kf5 {[%clk 0:00:20.9]}
36. c4 {[%clk 0:00:05.9]} 36... Kg4 {[%clk 0:00:20.5]} 37. d5 {[%clk 0:00:04.6]}
37... cxd5 {[%clk 0:00:19.8]} 38. cxd5 {[%clk 0:00:05.5]} 38... Bd6 {[%clk
0:00:19.5]} 39. Ng1 {[%clk 0:00:03.9]} 39... Kxh4 {[%clk 0:00:16.5]} 40. Nf3+
{[%clk 0:00:04.4]} 40... Kg4 {[%clk 0:00:17]} 41. Kf1 {[%clk 0:00:04.2]} 41...
g5 {[%clk 0:00:16.5]} 42. Nd4 {[%clk 0:00:04]} 42... Bb4 {[%clk 0:00:05.8]} 43.
Nc2 {[%clk 0:00:03.8]} 43... Bd6 {[%clk 0:00:05.9]} 44. Nd4 {[%clk 0:00:04.2]}
44... Re5 {[%clk 0:00:05.7]} 45. Nf3 {[%clk 0:00:04.1]} 45... Re3 {[%clk
0:00:04.8]} 46. Rxe3 {[%clk 0:00:03.6]} 46... fxe3 {[%clk 0:00:05.7]} 47. Ke2
{[%clk 0:00:03.9]} 47... Kf4 {[%clk 0:00:06.3]} 48. Ne1 {[%clk 0:00:03.7]} 48...
Ke4 {[%clk 0:00:06]} 49. Nc2 {[%clk 0:00:04.2]} 49... Bc5 {[%clk 0:00:06.3]} 50.
d6 {[%clk 0:00:04.2]} 50... Bxd6 {[%clk 0:00:05.3]} 51. Nxe3 {[%clk 0:00:05.1]}
51... Be7 {[%clk 0:00:04.5]} 52. Nc2 {[%clk 0:00:04.9]} 52... g4 {[%clk
0:00:03.7]} 53. Kd2 {[%clk 0:00:05]} 53... Bg5+ {[%clk 0:00:03.5]} 54. Ke2
{[%clk 0:00:04.9]} 54... Bf6 {[%clk 0:00:03.5]} 55. Ne1 {[%clk 0:00:03.3]} 55...
Kd4 {[%clk 0:00:03.5]} 56. Kd2 {[%clk 0:00:02.9]} 56... Bg5+ {[%clk 0:00:03.8]}
57. Kc2 {[%clk 0:00:03.2]} 57... Ke3 {[%clk 0:00:04.7]} 58. Nd3 {[%clk
0:00:03.5]} 58... Bf6 {[%clk 0:00:04]} 59. g3 {[%clk 0:00:01.5]} 59... Kf3
{[%clk 0:00:03.6]} 60. Nf4 {[%clk 0:00:02.1]} 60... Be5 {[%clk 0:00:03.5]} 61.
Ng6 {[%clk 0:00:02.2]} 61... Bxg3 {[%clk 0:00:03.8]} 62. Kd3 {[%clk 0:00:03.1]}
62... Bd6 {[%clk 0:00:04.1]} 63. Nh4+ {[%clk 0:00:03.1]} 63... Kf2 {[%clk
0:00:03.4]} 64. Nf5 {[%clk 0:00:02.9]} 64... Be5 {[%clk 0:00:03.8]} 65. Ke4
{[%clk 0:00:02.6]} 65... Bc7 {[%clk 0:00:04]} 66. Ne3 {[%clk 0:00:02.3]} 66...
g3 {[%clk 0:00:03.9]} 67. Ng4+ {[%clk 0:00:02.8]} 67... Ke2 {[%clk 0:00:04.4]}
68. Ne3 {[%clk 0:00:02.8]} 68... Bb6 {[%clk 0:00:04.9]} 69. Ng2 {[%clk
0:00:02.5]} 69... Kf2 {[%clk 0:00:05]} 70. Nh4 {[%clk 0:00:02.6]} 70... Bd8
{[%clk 0:00:04.9]} 71. Nf3 {[%clk 0:00:02.1]} 71... g2 {[%clk 0:00:05.1]} 72.
Nh2 {[%clk 0:00:02.5]} 72... g1=Q {[%clk 0:00:04.9]} 0-1

[Event "*** Titled Tuesday Blitz"]
[Site "Chess.com"]
[Date "2021.04.20"]
[Round "5"]
[White "scarabee43"]
[Black "eduardoperalta"]
[Result "1/2-1/2"]
[WhiteElo "2646"]
[BlackElo "2484"]
[TimeControl "180+1"]
[EndTime "10:56:28 PDT"]
[Termination "Game drawn - insufficient material"]

1. d4 {[%clk 0:03:00.9]} 1... Nf6 {[%clk 0:02:59.5]} 2. c4 {[%clk 0:03:00.2]}
2... c5 {[%clk 0:02:59.6]} 3. d5 {[%clk 0:03:00]} 3... g6 {[%clk 0:02:59.7]} 4.
Nc3 {[%clk 0:02:59.6]} 4... Bg7 {[%clk 0:02:59.1]} 5. e4 {[%clk 0:03:00.3]} 5...
d6 {[%clk 0:02:59]} 6. Nf3 {[%clk 0:03:00.9]} 6... O-O {[%clk 0:02:58]} 7. Be2
{[%clk 0:02:58.5]} 7... e5 {[%clk 0:02:57]} 8. Be3 {[%clk 0:02:52]} 8... a6
{[%clk 0:02:47.5]} 9. Nd2 {[%clk 0:02:48.7]} 9... Ne8 {[%clk 0:02:44.9]} 10. O-O
{[%clk 0:02:46.4]} 10... f5 {[%clk 0:02:44]} 11. f3 {[%clk 0:02:46.9]} 11... Nd7
{[%clk 0:02:42.3]} 12. Bf2 {[%clk 0:02:47.6]} 12... f4 {[%clk 0:02:40]} 13. a3
{[%clk 0:02:46.7]} 13... g5 {[%clk 0:02:33.9]} 14. b4 {[%clk 0:02:46.8]} 14...
b6 {[%clk 0:02:33.1]} 15. bxc5 {[%clk 0:02:43.6]} 15... Nxc5 {[%clk 0:02:29.8]}
16. Na4 {[%clk 0:02:41.2]} 16... Rf7 {[%clk 0:02:27.4]} 17. Rb1 {[%clk 0:02:39]}
17... Rb7 {[%clk 0:02:19.1]} 18. Nxc5 {[%clk 0:02:28.2]} 18... bxc5 {[%clk
0:02:16.9]} 19. Rxb7 {[%clk 0:02:27.9]} 19... Bxb7 {[%clk 0:02:17.8]} 20. Qb3
{[%clk 0:02:27.1]} 20... Bc8 {[%clk 0:02:15.9]} 21. Rb1 {[%clk 0:02:26.5]} 21...
Ra7 {[%clk 0:02:07.5]} 22. Qb8 {[%clk 0:02:23.2]} 22... Qc7 {[%clk 0:02:04.7]}
23. h4 {[%clk 0:02:16.9]} 23... h6 {[%clk 0:02:02.7]} 24. hxg5 {[%clk
0:02:16.7]} 24... hxg5 {[%clk 0:02:03.6]} 25. Rb6 {[%clk 0:02:13.3]} 25... Rb7
{[%clk 0:01:50.6]} 26. Qxc7 {[%clk 0:02:10]} 26... Rxc7 {[%clk 0:01:49.6]} 27.
Rb8 {[%clk 0:01:57.4]} 27... Kf7 {[%clk 0:01:45.9]} 28. Bd1 {[%clk 0:01:52.8]}
28... Nf6 {[%clk 0:01:35.4]} 29. Nb3 {[%clk 0:01:44.6]} 29... Nd7 {[%clk
0:01:33.6]} 30. Ra8 {[%clk 0:01:39.1]} 30... Nb6 {[%clk 0:01:30.4]} 31. Rb8
{[%clk 0:01:38.9]} 31... Nxc4 {[%clk 0:01:28.3]} 32. Be2 {[%clk 0:01:11.9]}
32... Nxa3 {[%clk 0:01:25.2]} 33. Na5 {[%clk 0:01:12.4]} 33... Nc2 {[%clk
0:00:45.7]} 34. Nc4 {[%clk 0:00:58.6]} 34... Bf8 {[%clk 0:00:41.5]} 35. Rb6
{[%clk 0:00:58.1]} 35... Nd4 {[%clk 0:00:25.5]} 36. Bxd4 {[%clk 0:00:56.3]}
36... cxd4 {[%clk 0:00:25.6]} 37. Nxd6+ {[%clk 0:00:56.8]} 37... Bxd6 {[%clk
0:00:24.9]} 38. Rxd6 {[%clk 0:00:57.5]} 38... Rc2 {[%clk 0:00:21.3]} 39. Kf1
{[%clk 0:00:49]} 39... a5 {[%clk 0:00:17.7]} 40. Ke1 {[%clk 0:00:29.4]} 40... a4
{[%clk 0:00:17.5]} 41. Kd1 {[%clk 0:00:28]} 41... Rc3 {[%clk 0:00:16.9]} 42. Rb6
{[%clk 0:00:24.5]} 42... a3 {[%clk 0:00:16.6]} 43. Rb1 {[%clk 0:00:24.5]} 43...
d3 {[%clk 0:00:16.6]} 44. Bf1 {[%clk 0:00:24.1]} 44... Ba6 {[%clk 0:00:15.4]}
45. Rb6 {[%clk 0:00:24]} 45... Bc4 {[%clk 0:00:14.3]} 46. Rb7+ {[%clk
0:00:21.6]} 46... Ke8 {[%clk 0:00:13.2]} 47. Ra7 {[%clk 0:00:20.5]} 47... a2
{[%clk 0:00:12.5]} 48. d6 {[%clk 0:00:20.4]} 48... Kd8 {[%clk 0:00:11.7]} 49. g4
{[%clk 0:00:16.9]} 49... Rb3 {[%clk 0:00:11.3]} 50. Kd2 {[%clk 0:00:12.5]} 50...
Rb1 {[%clk 0:00:09.8]} 51. Bxd3 {[%clk 0:00:06]} 51... a1=Q {[%clk 0:00:04.6]}
52. Rxa1 {[%clk 0:00:05.3]} 52... Rxa1 {[%clk 0:00:05.5]} 53. Bxc4 {[%clk
0:00:05.7]} 53... Ra3 {[%clk 0:00:06.2]} 54. Be6 {[%clk 0:00:01.9]} 54... Rxf3
{[%clk 0:00:05.2]} 55. Bf5 {[%clk 0:00:02.5]} 55... Re3 {[%clk 0:00:05.1]} 56.
Be6 {[%clk 0:00:01.9]} 56... Rxe4 {[%clk 0:00:05.1]} 57. d7 {[%clk 0:00:02.1]}
57... Rd4+ {[%clk 0:00:06]} 58. Ke2 {[%clk 0:00:02]} 58... Rxd7 {[%clk
0:00:06.7]} 59. Bxd7 {[%clk 0:00:01.7]} 59... Kxd7 {[%clk 0:00:07.6]} 60. Kf3
{[%clk 0:00:02.4]} 60... Ke6 {[%clk 0:00:08.5]} 61. Ke4 {[%clk 0:00:03.2]} 61...
Kf6 {[%clk 0:00:09]} 62. Kf3 {[%clk 0:00:03.5]} 62... Kf7 {[%clk 0:00:09.4]} 63.
Ke4 {[%clk 0:00:04.2]} 63... Ke6 {[%clk 0:00:10.3]} 64. Kf3 {[%clk 0:00:04.7]}
64... Kd5 {[%clk 0:00:11.2]} 65. Kf2 {[%clk 0:00:04.7]} 65... e4 {[%clk
0:00:12.1]} 66. Ke2 {[%clk 0:00:05.1]} 66... Kd4 {[%clk 0:00:13]} 67. Kf2 {[%clk
0:00:05.6]} 67... e3+ {[%clk 0:00:13.7]} 68. Ke2 {[%clk 0:00:05.9]} 68... Ke4
{[%clk 0:00:13.8]} 69. Ke1 {[%clk 0:00:06.2]} 69... Kf3 {[%clk 0:00:14.7]} 70.
Kf1 {[%clk 0:00:06.7]} 70... Kxg4 {[%clk 0:00:15.6]} 71. Ke2 {[%clk 0:00:07.2]}
71... Kh4 {[%clk 0:00:16.5]} 72. Kf3 {[%clk 0:00:07]} 72... g4+ {[%clk
0:00:17.4]} 73. Kxf4 {[%clk 0:00:07.1]} 73... g3 {[%clk 0:00:18.3]} 74. Kxe3
{[%clk 0:00:07.8]} 74... Kh3 {[%clk 0:00:18.2]} 75. Kf3 {[%clk 0:00:07.9]} 75...
Kh2 {[%clk 0:00:18.2]} 76. Ke2 {[%clk 0:00:06.9]} 76... g2 {[%clk 0:00:19.1]}
77. Kf2 {[%clk 0:00:07.4]} 77... g1=N {[%clk 0:00:19.4]} 1/2-1/2

[Event "*** Titled Tuesday Blitz"]
[Site "Chess.com"]
[Date "2021.04.20"]
[Round "5"]
[White "enriquetejedor"]
[Black "Keks2017"]
[Result "1-0"]
[WhiteElo "2635"]
[BlackElo "2469"]
[TimeControl "180+1"]
[EndTime "10:56:31 PDT"]
[Termination "enriquetejedor won on time"]

1. e4 {[%clk 0:02:59.1]} 1... d6 {[%clk 0:02:58.8]} 2. d4 {[%clk 0:02:56.1]}
2... Nf6 {[%clk 0:02:57.9]} 3. Nc3 {[%clk 0:02:51.5]} 3... g6 {[%clk 0:02:57.6]}
4. f3 {[%clk 0:02:44.9]} 4... c6 {[%clk 0:02:56.8]} 5. Be3 {[%clk 0:02:45.3]}
5... Nbd7 {[%clk 0:02:55.7]} 6. Qd2 {[%clk 0:02:42.2]} 6... b5 {[%clk
0:02:54.8]} 7. O-O-O {[%clk 0:02:40.3]} 7... Qa5 {[%clk 0:02:53.8]} 8. Kb1
{[%clk 0:02:39.7]} 8... Bg7 {[%clk 0:02:52.9]} 9. Bh6 {[%clk 0:02:35.9]} 9...
Bxh6 {[%clk 0:02:51.9]} 10. Qxh6 {[%clk 0:02:35.8]} 10... Rb8 {[%clk 0:02:51.7]}
11. h4 {[%clk 0:02:22.9]} 11... Nb6 {[%clk 0:02:49.9]} 12. h5 {[%clk 0:02:12.5]}
12... Rf8 {[%clk 0:02:45.3]} 13. hxg6 {[%clk 0:02:06.9]} 13... hxg6 {[%clk
0:02:44.3]} 14. e5 {[%clk 0:01:58.6]} 14... Nfd5 {[%clk 0:02:40.2]} 15. Nxd5
{[%clk 0:01:58]} 15... Nxd5 {[%clk 0:02:40]} 16. exd6 {[%clk 0:01:56.4]} 16...
exd6 {[%clk 0:02:37.2]} 17. Ne2 {[%clk 0:01:48]} 17... Be6 {[%clk 0:02:34.1]}
18. Nc1 {[%clk 0:01:40.1]} 18... b4 {[%clk 0:02:23.7]} 19. Nb3 {[%clk
0:01:18.8]} 19... Qb6 {[%clk 0:02:21.7]} 20. Bd3 {[%clk 0:01:04.8]} 20... a5
{[%clk 0:02:12.7]} 21. Bxg6 {[%clk 0:00:51.1]} 21... fxg6 {[%clk 0:02:07.3]} 22.
Qxg6+ {[%clk 0:00:50.9]} 22... Bf7 {[%clk 0:01:40.6]} 23. Qxd6 {[%clk 0:00:46]}
23... Ne7 {[%clk 0:01:20.5]} 24. Rde1 {[%clk 0:00:19.2]} 24... Rb7 {[%clk
0:01:12.9]} 25. Nc5 {[%clk 0:00:19.3]} 25... Ra7 {[%clk 0:01:12.6]} 26. Rh6
{[%clk 0:00:12.4]} 26... Qc7 {[%clk 0:01:00.3]} 27. Qxc6+ {[%clk 0:00:07.6]}
27... Qxc6 {[%clk 0:01:00.2]} 28. Rxc6 {[%clk 0:00:08.1]} 28... Kd8 {[%clk
0:00:56.8]} 29. Rf6 {[%clk 0:00:08.1]} 29... Nd5 {[%clk 0:00:50.9]} 30. Rd6+
{[%clk 0:00:07.1]} 30... Kc8 {[%clk 0:00:47.2]} 31. Kc1 {[%clk 0:00:05.5]} 31...
Re7 {[%clk 0:00:36.5]} 32. Rxe7 {[%clk 0:00:04.1]} 32... Nxe7 {[%clk 0:00:36.5]}
33. Rf6 {[%clk 0:00:03.9]} 33... Nd5 {[%clk 0:00:34.1]} 34. Rf5 {[%clk
0:00:04.1]} 34... Ne7 {[%clk 0:00:29.5]} 35. Rf4 {[%clk 0:00:03.6]} 35... Nd5
{[%clk 0:00:28.2]} 36. Re4 {[%clk 0:00:03.6]} 36... Rh8 {[%clk 0:00:25.1]} 37.
a3 {[%clk 0:00:02.8]} 37... Rh1+ {[%clk 0:00:24]} 38. Kd2 {[%clk 0:00:03]} 38...
Rh2 {[%clk 0:00:24]} 39. Re2 {[%clk 0:00:03.1]} 39... Nf4 {[%clk 0:00:22.2]} 40.
Rf2 {[%clk 0:00:03.5]} 40... Bd5 {[%clk 0:00:20.2]} 41. axb4 {[%clk 0:00:03.6]}
41... axb4 {[%clk 0:00:19.4]} 42. c3 {[%clk 0:00:03.7]} 42... bxc3+ {[%clk
0:00:18.9]} 43. bxc3 {[%clk 0:00:04.6]} 43... Bc4 {[%clk 0:00:18.2]} 44. Ne4
{[%clk 0:00:04.2]} 44... Kc7 {[%clk 0:00:16.4]} 45. g3 {[%clk 0:00:04.1]} 45...
Rxf2+ {[%clk 0:00:15.7]} 46. Nxf2 {[%clk 0:00:05]} 46... Nd5 {[%clk 0:00:14.8]}
47. Nd3 {[%clk 0:00:03.6]} 47... Nf6 {[%clk 0:00:13.9]} 48. Ne5 {[%clk
0:00:03.6]} 48... Bd5 {[%clk 0:00:13.8]} 49. c4 {[%clk 0:00:03.6]} 49... Bb7
{[%clk 0:00:12.9]} 50. Ke3 {[%clk 0:00:03.8]} 50... Kd6 {[%clk 0:00:12.5]} 51.
g4 {[%clk 0:00:04]} 51... Ke6 {[%clk 0:00:12.3]} 52. Nd3 {[%clk 0:00:04.1]}
52... Ne8 {[%clk 0:00:11.4]} 53. Nc5+ {[%clk 0:00:04.3]} 53... Kf6 {[%clk
0:00:11.5]} 54. Nxb7 {[%clk 0:00:04.9]} 54... Kg5 {[%clk 0:00:11.6]} 55. c5
{[%clk 0:00:04.6]} 55... Nc7 {[%clk 0:00:11.1]} 56. Ke4 {[%clk 0:00:04.8]} 56...
Kf6 {[%clk 0:00:10.7]} 57. d5 {[%clk 0:00:05.1]} 57... Nb5 {[%clk 0:00:09.1]}
58. Nd6 {[%clk 0:00:04.8]} 58... Nc3+ {[%clk 0:00:08.3]} 59. Kd4 {[%clk
0:00:05.3]} 59... Ne2+ {[%clk 0:00:08.2]} 60. Kc4 {[%clk 0:00:05.4]} 60... Nf4
{[%clk 0:00:07.7]} 61. Ne4+ {[%clk 0:00:06.3]} 61... Ke5 {[%clk 0:00:07.6]} 62.
d6 {[%clk 0:00:07]} 62... Ke6 {[%clk 0:00:07.1]} 63. c6 {[%clk 0:00:07.4]} 63...
Ng6 {[%clk 0:00:05.3]} 64. d7 {[%clk 0:00:07.5]} 64... Ke7 {[%clk 0:00:04.8]}
65. Kb5 {[%clk 0:00:07.6]} 65... Kd8 {[%clk 0:00:04.4]} 66. Kb6 {[%clk
0:00:07.6]} 66... Ne5 {[%clk 0:00:04.5]} 67. Nc5 {[%clk 0:00:07.2]} 67... Nc4+
{[%clk 0:00:04.4]} 68. Kb7 {[%clk 0:00:05.3]} 68... Na5+ {[%clk 0:00:04.5]} 69.
Kb6 {[%clk 0:00:05.6]} 69... Nc4+ {[%clk 0:00:04.3]} 70. Kb5 {[%clk 0:00:06]}
70... Nd6+ {[%clk 0:00:04.2]} 71. Kb4 {[%clk 0:00:06.4]} 71... Kc7 {[%clk
0:00:03.2]} 72. Ne6+ {[%clk 0:00:05.4]} 1-0